fUST/lending_fUST_20250920
["ID","MTS","AMOUNT","RATE_DAILY","PERIOD"]
[386499914,1758323433059,-480.0,0.00021374,2]
[386499916,1758323433068,-613.64,0.00021374,2]
[386499918,1758323433077,-480.0,0.00021374,2]
[386499920,1758323433087,-480.0,0.00021374,2]
[386499921,1758323433096,-480.0,0.00021374,2]
[386499923,1758323433106,-480.0,0.00021374,2]
[386499925,1758323433115,-480.0,0.00021374,2]
[386499927,1758323433125,-271.74462313,0.00021374,2]
[386499929,1758323433135,-480.0,0.00021374,2]
[386499931,1758323433146,-480.0,0.00021374,2]
[386499933,1758323433155,-480.0,0.00021374,2]
[386499935,1758323433166,-480.0,0.00021374,2]
[386499937,1758323433176,-480.0,0.00021374,2]
[386499938,1758323433186,-480.0,0.00021374,2]
[386499940,1758323433196,-480.0,0.00021374,2]
[386499942,1758323433205,-480.0,0.00021374,2]
[386499944,1758323433215,-480.0,0.00021374,2]
[386499946,1758323433225,-480.0,0.00021374,2]
[386499948,1758323433235,-350.16797353,0.00021374,2]
[386499950,1758323433245,-500.0,0.00021374,2]
[386499952,1758323433254,-2201.78,0.00021374,2]
[386499954,1758323433264,-480.0,0.00021375,2]
[386499956,1758323433273,-701.93,0.00021375,2]
[386499958,1758323433283,-3269.32,0.00021375,2]
[386499960,1758323433292,-480.0,0.00021375,2]
[386499961,1758323433302,-956.69,0.00021379,2]
[386499963,1758323433311,-480.0,0.00021379,2]
[386499965,1758323433321,-480.0,0.00021647,2]
[386499978,1758323433454,-480.0,0.00021647,2]
[386499980,1758323433464,-480.0,0.00021647,2]
[386499982,1758323433474,-480.0,0.00021647,2]
[386499984,1758323433483,-480.0,0.00021647,2]
[386499986,1758323433493,-480.0,0.00021647,2]
[386499988,1758323433504,-853.61,0.00021647,2]
[386499990,1758323433514,-480.0,0.00021647,2]
[386499992,1758323433524,-1039.42,0.00021647,2]
[386499994,1758323433533,-625.32,0.00021647,2]
[386499996,1758323433543,-181.01,0.00021647,2]
[386499997,1758323433552,-606.64,0.00021647,2]
[386499999,1758323433562,-538.45,0.00021647,2]
[386500000,1758323433571,-480.0,0.00021647,2]
[386500001,1758323433580,-480.0,0.00021647,2]
[386500002,1758323433590,-480.0,0.00021647,2]
[386500003,1758323433600,-480.0,0.00021647,2]
[386500004,1758323433609,-480.0,0.00021647,2]
[386500005,1758323433620,-480.0,0.00021647,2]
[386500006,1758323433629,-524.76,0.00021647,2]
[386500007,1758323433639,-515.05,0.00021647,2]
[386500008,1758323433648,-480.0,0.00021647,2]
[386500009,1758323433658,-871.51,0.00021647,2]
[386500010,1758323433667,-559.14,0.00021647,2]
[386500011,1758323433677,-480.0,0.00021647,2]
[386500012,1758323433687,-480.0,0.00021647,2]
[386500013,1758323433697,-519.41,0.00021647,2]
[386500014,1758323433707,-480.0,0.00021647,2]
[386500015,1758323433716,-480.0,0.00021648,2]
[386500016,1758323433726,-480.0,0.00021648,2]
[386500018,1758323433735,-432.17350459,0.00021648,2]
[386500020,1758323433745,-383.60201746,0.00021648,2]
[386500022,1758323433755,-480.0,0.00021648,2]
[386500024,1758323433765,-480.0,0.00021648,2]
[386500026,1758323433775,-480.0,0.00021648,2]
[386500028,1758323433784,-480.0,0.00021648,2]
[386500030,1758323433794,-480.0,0.00021648,2]
[386500032,1758323433804,-480.0,0.00021648,2]
[386500034,1758323433813,-480.0,0.00021648,2]
[386500036,1758323433822,-480.0,0.00021648,2]
[386500038,1758323433832,-480.0,0.00021648,2]
[386500040,1758323433841,-529.98,0.00021648,2]
[386500042,1758323433851,-2201.78,0.00021648,2]
[386500044,1758323433860,-480.0,0.00021649,2]
[386500046,1758323433869,-701.93,0.00021649,2]
[386500048,1758323433879,-3269.32,0.00021649,2]
[386500050,1758323433889,-480.0,0.00021649,2]
[386500051,1758323433898,-956.69,0.00021653,2]
[386500053,1758323433907,-480.0,0.00021653,2]
[386500055,1758323433916,-268.29,0.00021913,3]
[386500057,1758323433925,-480.0,0.00021921,2]
[386500059,1758323433935,-629.46,0.00021921,2]
[386500061,1758323433944,-480.0,0.00021921,2]
[386500063,1758323433953,-480.0,0.00021921,2]
[386500065,1758323433962,-480.0,0.00021921,2]
[386500067,1758323433971,-853.61,0.00021921,2]
[386500069,1758323433980,-480.0,0.00021921,2]
[386500071,1758323433990,-1039.42,0.00021921,2]
[386500073,1758323433999,-625.32,0.00021921,2]
[386500075,1758323434008,-606.64,0.00021921,2]
[386500077,1758323434018,-470.76,0.00021921,2]
[386500079,1758323434028,-480.0,0.00021921,2]
[386500081,1758323434037,-480.0,0.00021921,2]
[386500083,1758323434046,-480.0,0.00021921,2]
[386500085,1758323434055,-480.0,0.00021921,2]
[386500087,1758323434064,-524.76,0.00021921,2]
[386500089,1758323434073,-515.05,0.00021921,2]
[386500091,1758323434083,-381.11,0.00021921,2]
[386500093,1758323434092,-871.51,0.00021921,2]
[386500095,1758323434101,-480.0,0.00021921,2]
[386500097,1758323434110,-480.0,0.00021921,2]
[386500098,1758323434119,-519.41,0.00021921,2]
[386500100,1758323434129,-480.0,0.00021922,2]
[386500102,1758323434139,-480.0,0.00021922,2]
[386500104,1758323434149,-480.0,0.00021922,2]
[386500106,1758323434158,-480.0,0.00021922,2]
[386500109,1758323434168,-480.0,0.00021922,2]
[386500111,1758323434178,-404.2,0.00021922,2]
[386500112,1758323434187,-480.0,0.00021922,2]
[386500114,1758323434197,-574.87,0.00021922,2]
[386500117,1758323434207,-480.0,0.00021922,2]
[386500118,1758323434216,-480.0,0.00021922,2]
[386500120,1758323434226,-480.0,0.00021922,2]
[386500122,1758323434235,-2201.78,0.00021922,2]
[386500123,1758323434245,-480.0,0.00021923,2]
[386500125,1758323434255,-701.93,0.00021923,2]
[386500127,1758323434265,-3269.32,0.00021923,2]
[386500129,1758323434274,-480.0,0.00021923,2]
[386500131,1758323434284,-956.69,0.00021927,2]
[386500133,1758323434294,-480.0,0.00021927,2]
[386500135,1758323434303,-500.0,0.00022112,2]
[386500137,1758323434312,-523.29,0.00022195,2]
[386500140,1758323434328,-204.66,0.00022195,2]
[386500142,1758323434343,-480.0,0.00022195,2]
[386500144,1758323434353,-853.61,0.00022195,2]
[386500146,1758323434364,-480.0,0.00022195,2]
[386500148,1758323434374,-1039.42,0.00022195,2]
[386500150,1758323434384,-625.32,0.00022195,2]
[386500152,1758323434394,-606.64,0.00022195,2]
[386500154,1758323434403,-480.0,0.00022195,2]
[386500156,1758323434413,-480.0,0.00022195,2]
[386500158,1758323434423,-447.49,0.00022195,2]
[386500160,1758323434432,-480.0,0.00022195,2]
[386500162,1758323434442,-524.76,0.00022195,2]
[386500164,1758323434452,-515.05,0.00022195,2]
[386500166,1758323434462,-871.51,0.00022195,2]
[386500168,1758323434472,-431.71,0.00022195,2]
[386500170,1758323434482,-480.0,0.00022195,2]
[386500172,1758323434493,-519.41,0.00022195,2]
[386500174,1758323434505,-480.0,0.00022196,2]
[386500176,1758323434515,-480.0,0.00022196,2]
[386500178,1758323434525,-480.0,0.00022196,2]
[386500180,1758323434535,-480.0,0.00022196,2]
[386500182,1758323434546,-480.0,0.00022196,2]
[386500184,1758323434556,-480.0,0.00022196,2]
[386500186,1758323434566,-480.0,0.00022196,2]
[386500188,1758323434578,-480.0,0.00022196,2]
[386500190,1758323434588,-2201.78,0.00022196,2]
[386500192,1758323434597,-480.0,0.00022197,2]
[386500194,1758323434607,-701.93,0.00022197,2]
[386500196,1758323434617,-3269.32,0.00022197,2]
[386500198,1758323434626,-480.0,0.00022197,2]
[386500200,1758323434636,-719.73321595,0.00022198,2]
[386500202,1758323434647,-956.69,0.00022201,2]
[386500204,1758323434656,-480.0,0.00022469,2]
[386500206,1758323434666,-853.61,0.00022469,2]
[386500208,1758323434676,-375.02,0.00022469,2]
[386500210,1758323434686,-1039.42,0.00022469,2]
[386500212,1758323434695,-625.32,0.00022469,2]
[386500214,1758323434704,-606.64,0.00022469,2]
[386500216,1758323434714,-480.0,0.00022469,2]
[386500218,1758323434724,-480.0,0.00022469,2]
[386500220,1758323434734,-480.0,0.00022469,2]
[386500222,1758323434743,-524.76,0.00022469,2]
[386500224,1758323434752,-515.05,0.00022469,2]
[386500226,1758323434762,-871.51,0.00022469,2]
[386500228,1758323434771,-480.0,0.00022469,2]
[386500229,1758323434781,-519.41,0.00022469,2]
[386500231,1758323434790,-500.0,0.00022469,2]
[386500233,1758323434799,-480.0,0.0002247,2]
[386500235,1758323434809,-480.0,0.0002247,2]
[386500237,1758323434818,-155.0,0.0002247,2]
[386500239,1758323434828,-480.0,0.0002247,2]
[386500241,1758323434838,-480.0,0.0002247,2]
[386500243,1758323434847,-268.99118504,0.0002247,2]
[386500245,1758323434858,-480.0,0.0002247,2]
[386500246,1758323434869,-480.0,0.00022471,2]
[386500248,1758323434878,-701.93,0.00022471,2]
[386500250,1758323434888,-3269.32,0.00022471,2]
[386500252,1758323434898,-480.0,0.00022471,2]
[386500254,1758323434908,-956.69,0.00022475,2]
[386500256,1758323434917,-379.63204659,0.0002266,2]
[386500258,1758323434927,-853.61,0.00022743,2]
[386500260,1758323434936,-1039.42,0.00022743,2]
[386500262,1758323434946,-625.32,0.00022743,2]
[386500264,1758323434955,-606.64,0.00022743,2]
[386500266,1758323434964,-480.0,0.00022743,2]
[386500268,1758323434974,-251.69763453,0.00022743,2]
[386500270,1758323434983,-480.0,0.00022743,2]
[386500272,1758323434992,-524.76,0.00022743,2]
[386500274,1758323435002,-515.05,0.00022743,2]
[386500276,1758323435011,-871.51,0.00022743,2]
[386500278,1758323435021,-480.0,0.00022743,2]
[386500279,1758323435031,-519.41,0.00022743,2]
[386500281,1758323435040,-185.82,0.00022744,2]
[386500283,1758323435050,-480.0,0.00022744,2]
[386500285,1758323435059,-480.0,0.00022744,2]
[386500287,1758323435069,-480.0,0.00022744,2]
[386500289,1758323435079,-480.0,0.00022744,2]
[386500291,1758323435088,-480.0,0.00022745,2]
[386500293,1758323435097,-701.93,0.00022745,2]
[386500295,1758323435107,-3269.32,0.00022745,2]
[386500297,1758323435116,-480.0,0.00022745,2]
[386500299,1758323435126,-956.69,0.00022749,2]
[386500301,1758323435136,-160.0,0.00022956,2]
[386500303,1758323435145,-848.13460282,0.00023,2]
[386500304,1758323435155,-160.0,0.00023,2]
[386500306,1758323435164,-160.0,0.00023,2]
[386500308,1758323435173,-233.43972884,0.00023,2]
[386500310,1758323435183,-160.0,0.00023,2]
[386500312,1758323435193,-217.99592756,0.00023,2]
[386500314,1758323435202,-853.61,0.00023017,2]
[386500316,1758323435212,-1039.42,0.00023017,2]
[386500318,1758323435222,-625.32,0.00023017,2]
[386500320,1758323435232,-606.64,0.00023017,2]
[386500322,1758323435242,-480.0,0.00023017,2]
[386500324,1758323435251,-540.11,0.00023017,2]
[386500326,1758323435261,-524.76,0.00023017,2]
[386500328,1758323435271,-515.05,0.00023017,2]
[386500330,1758323435280,-871.51,0.00023017,2]
[386500332,1758323435290,-480.0,0.00023017,2]
[386500334,1758323435299,-519.41,0.00023017,2]
[386500336,1758323435310,-480.0,0.00023018,2]
[386500338,1758323435319,-480.0,0.00023018,2]
[386500340,1758323435328,-480.0,0.00023018,2]
[386500341,1758323435337,-480.0,0.00023018,2]
[386500343,1758323435346,-480.0,0.00023019,2]
[386500345,1758323435355,-701.93,0.00023019,2]
[386500347,1758323435366,-3269.32,0.00023019,2]
[386500349,1758323435375,-480.0,0.00023019,2]
[386500351,1758323435385,-956.69,0.00023023,2]
[386500353,1758323435394,-853.61,0.00023291,2]
[386500355,1758323435403,-1039.42,0.00023291,2]
[386500357,1758323435412,-625.32,0.00023291,2]
[386500359,1758323435422,-606.64,0.00023291,2]
[386500361,1758323435431,-480.0,0.00023291,2]
[386500362,1758323435440,-524.76,0.00023291,2]
[386500364,1758323435450,-515.05,0.00023291,2]
[386500366,1758323435460,-871.51,0.00023291,2]
[386500368,1758323435469,-480.0,0.00023291,2]
[386500370,1758323435479,-519.41,0.00023291,2]
[386500372,1758323435488,-480.0,0.00023292,2]
[386500374,1758323435502,-480.0,0.00023292,2]
[386500376,1758323435511,-480.0,0.00023292,2]
[386500378,1758323435521,-480.0,0.00023292,2]
[386500380,1758323435530,-480.0,0.00023293,2]
[386500382,1758323435540,-701.93,0.00023293,2]
[386500384,1758323435550,-3269.32,0.00023293,2]
[386500386,1758323435559,-480.0,0.00023293,2]
[386500388,1758323435570,-956.69,0.00023297,2]
[386500390,1758323435580,-250.0,0.00023325,2]
[386500392,1758323435589,-250.0,0.00023325,2]
[386500394,1758323435599,-250.0,0.00023325,2]
[386500396,1758323435610,-250.0,0.00023325,2]
[386500398,1758323435619,-250.0,0.00023325,2]
[386500400,1758323435629,-250.0,0.00023325,2]
[386500401,1758323435640,-250.0,0.00023325,2]
[386500403,1758323435651,-250.0,0.00023325,2]
[386500405,1758323435660,-250.0,0.00023325,2]
[386500407,1758323435670,-279.83271053,0.00023325,2]
[386500409,1758323435680,-313.02793513,0.00023325,2]
[386500411,1758323435689,-719.73321595,0.0002339,2]
[386500413,1758323435699,-260.0,0.00023504,2]
[386500415,1758323435708,-2000.0,0.00023564,2]
[386500417,1758323435718,-853.61,0.00023565,2]
[386500419,1758323435728,-1039.42,0.00023565,2]
[386500421,1758323435737,-625.32,0.00023565,2]
[386500423,1758323435747,-606.64,0.00023565,2]
[386500425,1758323435756,-480.0,0.00023565,2]
[386500427,1758323435766,-524.76,0.00023565,2]
[386500429,1758323435775,-515.05,0.00023565,2]
[386500431,1758323435785,-871.51,0.00023565,2]
[386500433,1758323435794,-480.0,0.00023565,2]
[386500435,1758323435803,-519.41,0.00023565,2]
[386500437,1758323435813,-480.0,0.00023566,2]
[386500439,1758323435823,-480.0,0.00023566,2]
[386500441,1758323435832,-480.0,0.00023566,2]
[386500443,1758323435842,-480.0,0.00023566,2]
[386500445,1758323435852,-480.0,0.00023567,2]
[386500447,1758323435870,-701.93,0.00023567,2]
[386500448,1758323435882,-3269.32,0.00023567,2]
[386500451,1758323435892,-480.0,0.00023567,2]
[386500452,1758323435902,-956.69,0.00023571,2]
[386500454,1758323435911,-2295.54,0.000236,7]
[386500456,1758323435920,-853.61,0.00023839,2]
[386500458,1758323435930,-1039.42,0.00023839,2]
[386500460,1758323435939,-625.32,0.00023839,2]
[386500462,1758323435950,-606.64,0.00023839,2]
[386500464,1758323435959,-480.0,0.00023839,2]
[386500466,1758323435968,-524.76,0.00023839,2]
[386500468,1758323435979,-515.05,0.00023839,2]
[386500470,1758323435989,-871.51,0.00023839,2]
[386500472,1758323435999,-480.0,0.00023839,2]
[386500474,1758323436008,-519.41,0.00023839,2]
[386500476,1758323436017,-480.0,0.0002384,2]
[386500478,1758323436027,-480.0,0.0002384,2]
[386500479,1758323436037,-480.0,0.0002384,2]
[386500481,1758323436047,-480.0,0.0002384,2]
[386500483,1758323436058,-480.0,0.00023841,2]
[386500485,1758323436069,-701.93,0.00023841,2]
[386500487,1758323436078,-3269.32,0.00023841,2]
[386500489,1758323436088,-480.0,0.00023841,2]
[386500491,1758323436098,-956.69,0.00023845,2]
[386500493,1758323436107,-360.0,0.00024051,2]
[386500495,1758323436117,-262.147,0.00024059,5]
[386500497,1758323436126,-853.61,0.00024113,2]
[386500499,1758323436135,-1039.42,0.00024113,2]
[386500501,1758323436145,-625.32,0.00024113,2]
[386500503,1758323436155,-606.64,0.00024113,2]
[386500505,1758323436165,-480.0,0.00024113,2]
[386500507,1758323436175,-524.76,0.00024113,2]
[386500509,1758323436185,-515.05,0.00024113,2]
[386500511,1758323436196,-871.51,0.00024113,2]
[386500513,1758323436206,-480.0,0.00024113,2]
[386500515,1758323436215,-519.41,0.00024113,2]
[386500517,1758323436226,-367.94,0.00024114,2]
[386500519,1758323436236,-480.0,0.00024114,2]
[386500520,1758323436246,-480.0,0.00024114,2]
[386500522,1758323436257,-511.13,0.00024114,2]
[386500524,1758323436267,-480.0,0.00024115,2]
[386500526,1758323436277,-701.93,0.00024115,2]
[386500528,1758323436287,-3269.32,0.00024115,2]
[386500530,1758323436296,-480.0,0.00024115,2]
[386500532,1758323436307,-956.69,0.00024119,2]
[386500534,1758323436318,-853.61,0.00024387,2]
[386500536,1758323436327,-1039.42,0.00024387,2]
[386500538,1758323436337,-625.32,0.00024387,2]
[386500540,1758323436347,-606.64,0.00024387,2]
[386500542,1758323436357,-480.0,0.00024387,2]
[386500544,1758323436368,-524.76,0.00024387,2]
[386500546,1758323436378,-515.05,0.00024387,2]
[386500548,1758323436387,-871.51,0.00024387,2]
[386500550,1758323436396,-480.0,0.00024387,2]
[386500552,1758323436406,-519.41,0.00024387,2]
[386500554,1758323436416,-480.0,0.00024388,2]
[386500556,1758323436426,-480.0,0.00024388,2]
[386500558,1758323436435,-480.0,0.00024389,2]
[386500560,1758323436445,-701.93,0.00024389,2]
[386500562,1758323436454,-3269.32,0.00024389,2]
[386500564,1758323436464,-480.0,0.00024389,2]
[386500565,1758323436474,-956.69,0.00024393,2]
[386500568,1758323436484,-719.73321595,0.00024583,2]
[386500569,1758323436494,-460.0,0.00024599,2]
[386500572,1758323436504,-4000.0,0.0002466,2]
[386500574,1758323436514,-853.61,0.00024661,2]
[386500575,1758323436523,-1039.42,0.00024661,2]
[386500577,1758323436533,-625.32,0.00024661,2]
[386500590,1758323436659,-606.64,0.00024661,2]
[386500592,1758323436668,-480.0,0.00024661,2]
[386500594,1758323436678,-524.76,0.00024661,2]
[386500596,1758323436687,-515.05,0.00024661,2]
[386500598,1758323436697,-871.51,0.00024661,2]
[386500600,1758323436706,-538.71,0.00024661,2]
[386500602,1758323436715,-519.41,0.00024661,2]
[386500604,1758323436724,-480.0,0.00024662,2]
[386500606,1758323436733,-480.0,0.00024662,2]
[386500608,1758323436743,-480.0,0.00024663,2]
[386500610,1758323436752,-701.93,0.00024663,2]
[386500612,1758323436761,-3269.32,0.00024663,2]
[386500614,1758323436770,-480.0,0.00024663,2]
[386500616,1758323436780,-956.69,0.00024667,2]
[386500618,1758323436789,-500.0,0.00024873,2]
[386500620,1758323436799,-329254.3827806,0.000249,2]
[386500736,1758323437951,-392.63812018,0.00021099,2]
[386500739,1758323437963,-87.36187982,0.00021099,2]
[386500741,1758323437973,-480.0,0.00021099,2]
[386500743,1758323437983,-422.63812018,0.00021373,2]
[386500745,1758323437994,-57.36187982,0.00021373,2]
[386500747,1758323438003,-480.0,0.00021373,2]
[386500749,1758323438013,-326.4862605,0.00021374,2]
[386500751,1758323438023,-139.63185968,0.00021647,2]
[386500763,1758323438328,-340.36814032,0.00021647,2]
[386500765,1758323438338,-299.42,0.00021921,2]
[386500766,1758323438347,-432.91455962,0.0002247,2]
[386500769,1758323438358,-1768.86544038,0.0002247,2]
[386500771,1758323438368,-2201.78,0.00022744,2]
[386500773,1758323438377,-2201.78,0.00023018,2]
[386500775,1758323438387,-2201.78,0.00023292,2]
[386500777,1758323438396,-2201.78,0.00023566,2]
[386500778,1758323438405,-2201.78,0.0002384,2]
[386500780,1758323438414,-2201.78,0.00024114,2]
[386500783,1758323438425,-2201.78,0.00024388,2]
[386500785,1758323438435,-2201.78,0.00024662,2]
[386500786,1758323438444,-178945.9972714,0.000249,2]
[386500788,1758323438454,-1039.42,0.00024935,2]
[386500790,1758323438463,-625.32,0.00024935,2]
[386500792,1758323438472,-606.64,0.00024935,2]
[386500794,1758323438482,-480.0,0.00024935,2]
[386500796,1758323438491,-524.76,0.00024935,2]
[386500798,1758323438501,-515.05,0.00024935,2]
[386500800,1758323438510,-871.51,0.00024935,2]
[386500802,1758323438519,-519.41,0.00024935,2]
[386500804,1758323438529,-541.85407632,0.00024935,2]
[386500806,1758323438538,-480.0,0.00024936,2]
[386500808,1758323438548,-480.0,0.00024936,2]
[386500810,1758323438557,-2201.78,0.00024936,2]
[386500812,1758323438566,-480.0,0.00024937,2]
[386500814,1758323438575,-701.93,0.00024937,2]
[386500816,1758323438585,-3269.32,0.00024937,2]
[386500818,1758323438594,-480.0,0.00024937,2]
[386500820,1758323438603,-956.69,0.00024941,2]
[386500822,1758323438612,-500.0,0.00024973,2]
[386500824,1758323438622,-500.0,0.00024973,2]
[386500826,1758323438631,-475.4855962,0.00024973,2]
[386500828,1758323438642,-34204.59280734,0.0002499,2]
[386500830,1758323438652,-560.0,0.00025147,2]
[386500832,1758323438661,-216.0,0.00025208,2]
[386500834,1758323438670,-1039.42,0.00025209,2]
[386500836,1758323438680,-625.32,0.00025209,2]
[386500838,1758323438689,-606.64,0.00025209,2]
[386500840,1758323438699,-565.93097833,0.00025209,2]
[386500842,1758323438708,-524.76,0.00025209,2]
[386500844,1758323438717,-515.05,0.00025209,2]
[386500846,1758323438727,-871.51,0.00025209,2]
[386500848,1758323438736,-519.41,0.00025209,2]
[386500850,1758323438745,-480.0,0.0002521,2]
[386500851,1758323438755,-480.0,0.0002521,2]
[386500853,1758323438764,-480.0,0.00025211,2]
[386500855,1758323438774,-701.93,0.00025211,2]
[386500857,1758323438783,-3269.32,0.00025211,2]
[386500860,1758323438794,-480.0,0.00025211,2]
[386500861,1758323438803,-956.69,0.00025215,2]
[386500863,1758323438812,-977.0,0.00025244,2]
[386500865,1758323438822,-2158.0,0.00025244,2]
[386500867,1758323438831,-634.0,0.00025244,2]
[386500869,1758323438841,-410.0,0.00025244,2]
[386500872,1758323438851,-415.167,0.00025244,2]
[386500873,1758323438860,-4321.0,0.00025244,2]
[386500875,1758323438870,-168.0,0.00025343,2]
[386500877,1758323438880,-168.0,0.00025345,2]
[386500879,1758323438890,-168.0,0.0002536,2]
[386500881,1758323438899,-500.0,0.00025421,2]
[386500883,1758323438908,-1039.42,0.00025483,2]
[386500885,1758323438917,-625.32,0.00025483,2]
[386500887,1758323438927,-606.64,0.00025483,2]
[386500889,1758323438936,-524.76,0.00025483,2]
[386500891,1758323438945,-515.05,0.00025483,2]
[386500893,1758323438954,-871.51,0.00025483,2]
[386500894,1758323438964,-519.41,0.00025483,2]
[386500896,1758323438973,-480.0,0.00025484,2]
[386500898,1758323438982,-480.0,0.00025484,2]
[386500900,1758323438991,-480.0,0.00025485,2]
[386500902,1758323439001,-701.93,0.00025485,2]
[386500904,1758323439010,-3269.32,0.00025485,2]
[386500906,1758323439019,-480.0,0.00025485,2]
[386500908,1758323439029,-956.69,0.00025489,2]
[386500910,1758323439038,-168.0,0.00025506,2]
[386500912,1758323439047,-151.0,0.00025514,2]
[386500914,1758323439056,-151.0,0.00025514,2]
[386500916,1758323439065,-151.0,0.00025514,2]
[386500918,1758323439074,-151.0,0.00025514,2]
[386500919,1758323439084,-151.0,0.00025514,2]
[386500921,1758323439094,-151.0,0.00025514,2]
[386500923,1758323439103,-500.0,0.00025514,2]
[386500925,1758323439113,-500.0,0.00025514,2]
[386500927,1758323439122,-151.0,0.00025514,2]
[386500929,1758323439131,-157.74312269,0.00025514,2]
[386500931,1758323439140,-151.0,0.00025514,2]
[386500933,1758323439150,-500.0,0.00025514,2]
[386500934,1758323439159,-151.0,0.00025514,2]
[386500936,1758323439168,-500.0,0.00025514,2]
[386500938,1758323439178,-152.21553423,0.00025514,2]
[386500940,1758323439187,-206.96162217,0.00025514,2]
[386500942,1758323439197,-163.42770127,0.00025514,2]
[386500944,1758323439206,-163.75081278,0.00025514,2]
[386500946,1758323439215,-151.0,0.00025514,2]
[386500948,1758323439225,-151.0,0.00025514,2]
[386500950,1758323439234,-500.0,0.00025514,2]
[386500952,1758323439243,-151.0,0.00025514,2]
[386500954,1758323439252,-151.0,0.00025514,2]
[386500956,1758323439263,-151.0,0.00025514,2]
[386500957,1758323439272,-500.0,0.00025514,2]
[386500959,1758323439282,-1000.0,0.00025521,2]
[386500961,1758323439291,-1000.0,0.00025521,2]
[386500963,1758323439300,-168.0,0.00025531,2]
[386500965,1758323439310,-150.0,0.00025614,2]
[386500967,1758323439319,-660.0,0.00025695,2]
[386500969,1758323439329,-500.0,0.00025709,2]
[386500971,1758323439338,-500.0,0.00025709,2]
[386500972,1758323439348,-500.0,0.00025709,2]
[386500974,1758323439357,-1039.42,0.00025757,2]
[386500976,1758323439366,-625.32,0.00025757,2]
[386500978,1758323439375,-606.64,0.00025757,2]
[386500980,1758323439385,-524.76,0.00025757,2]
[386500982,1758323439394,-515.05,0.00025757,2]
[386500984,1758323439404,-871.51,0.00025757,2]
[386500986,1758323439413,-519.41,0.00025757,2]
[386500988,1758323439423,-480.0,0.00025758,2]
[386500990,1758323439432,-617.91,0.00025758,2]
[386500992,1758323439442,-480.0,0.00025759,2]
[386500994,1758323439451,-701.93,0.00025759,2]
[386500996,1758323439462,-3269.32,0.00025759,2]
[386500998,1758323439471,-480.0,0.00025759,2]
[386501000,1758323439480,-956.69,0.00025763,2]
[386501003,1758323439490,-719.73321595,0.00025776,2]
[386501005,1758323439502,-151.0,0.00025788,2]
[386501007,1758323439512,-151.0,0.00025788,2]
[386501009,1758323439521,-151.0,0.00025788,2]
[386501011,1758323439531,-151.0,0.00025788,2]
[386501013,1758323439540,-151.0,0.00025788,2]
[386501015,1758323439549,-500.0,0.00025788,2]
[386501016,1758323439559,-547.0,0.00025788,2]
[386501018,1758323439568,-151.0,0.00025788,2]